bitfinex-derivatives/quotes_BTCF0:USTF0_20250106
["timestamp","ask_amount","ask_price","bid_price","bid_amount"]
[1736176322223,0.3608,101180.0,101170.0,1.549429]
[1736176322623,0.410224,101180.0,101170.0,1.549429]
[1736176323222,0.3608,101180.0,101170.0,1.549429]
[1736176323429,0.41022,101190.0,101170.0,1.78851126]
[1736176323632,0.3608,101190.0,101180.0,0.049424]
[1736176323834,0.3608,101190.0,101180.0,0.28850626]
[1736176324329,0.3658,101190.0,101180.0,0.28850626]
[1736176324722,0.3658,101190.0,101180.0,0.049424]
[1736176324918,0.41522,101190.0,101170.0,1.550427]
[1736176325119,0.415219,101190.0,101180.0,0.049424]
[1736176325324,0.776019,101190.0,101180.0,0.049424]
[1736176325527,0.776019,101190.0,101180.0,0.050424]
[1736176325733,0.777019,101190.0,101180.0,0.050424]
[1736176326428,0.777019,101190.0,101180.0,0.001]
[1736176326727,0.776019,101190.0,101180.0,0.003]
[1736176326931,0.776019,101190.0,101180.0,0.052424]
[1736176327436,0.7266,101190.0,101180.0,0.052424]
[1736176327627,0.3608,101190.0,101180.0,0.29050626]
[1736176328330,0.3608,101190.0,101180.0,0.28850626]
[1736176328528,0.3608,101190.0,101180.0,0.28950626]
[1736176328731,0.3608,101190.0,101180.0,0.050424]
[1736176329320,0.3608,101190.0,101180.0,0.053424]
[1736176329925,0.3608,101200.0,101190.0,0.049415]
[1736176330233,0.3608,101230.0,101190.0,0.64930026]
[1736176330437,0.3608,101230.0,101220.0,0.28848626]
[1736176330828,0.3608,101230.0,101220.0,0.049404]
[1736176331031,0.410199,101230.0,101220.0,0.049404]
[1736176331228,0.410199,101230.0,101190.0,0.9832097]
[1736176331229,0.410199,101230.0,101190.0,0.97489726]
[1736176331431,0.3608,101220.0,101210.0,0.049408]
[1736176332024,0.410206,101220.0,101200.0,0.049411]
[1736176332340,0.049416,101200.0,101190.0,0.049418]
[1736176332535,0.410216,101200.0,101190.0,0.050418]
[1736176333239,0.897496,101200.0,101190.0,0.001]
[1736176333440,0.897496,101200.0,101180.0,0.049423]
[1736176333625,0.410219,101190.0,101160.0,0.24056459]
[1736176333930,0.410219,101190.0,101160.0,0.28999859]
[1736176333931,0.3608,101180.0,101160.0,0.28999859]
[1736176334135,0.3608,101180.0,101170.0,0.049429]
[1736176334327,0.3608,101190.0,101180.0,0.049424]
[1736176334524,0.410211,101210.0,101190.0,0.049419]
[1736176334736,0.3608,101200.0,101180.0,0.23908226]
[1736176335031,0.3608,101200.0,101190.0,0.049417]
[1736176335426,0.410214,101200.0,101190.0,0.001]
[1736176336244,0.049424,101180.0,101170.0,0.057428]
[1736176336435,0.771024,101180.0,101170.0,0.057428]
[1736176336633,0.7216,101180.0,101170.0,0.057428]
[1736176336829,0.7216,101180.0,101170.0,1.557428]
[1736176337032,0.363715,101200.0,101180.0,0.053424]
[1736176337033,0.3608,101190.0,101180.0,0.053424]
[1736176337230,0.3608,101200.0,101190.0,0.049419]
[1736176337739,0.410214,101200.0,101190.0,0.050419]
[1736176338130,0.410214,101200.0,101190.0,0.001]
[1736176338635,0.3608,101200.0,101190.0,0.050419]
[1736176339026,0.3608,101210.0,101190.0,0.050419]
[1736176339230,0.3608,101220.0,101200.0,0.64929626]
[1736176339432,0.47779239,101250.0,101220.0,0.049404]
[1736176339627,0.47779239,101250.0,101240.0,0.049394]
[1736176339941,0.52718439,101250.0,101230.0,0.049396]
[1736176340233,0.52718439,101250.0,101240.0,0.049394]
[1736176340440,0.88798439,101250.0,101240.0,0.049394]
[1736176340634,0.770992,101250.0,101240.0,0.049394]
[1736176340829,0.7216,101250.0,101220.0,0.3234]
[1736176341034,0.3608,101230.0,101220.0,0.372804]
[1736176341237,0.3608,101240.0,101230.0,0.049399]
[1736176341836,0.410194,101240.0,101230.0,0.049399]
[1736176342028,0.049401,101230.0,101220.0,0.049403]
[1736176342227,0.049401,101230.0,101220.0,1.549403]
[1736176342228,0.410201,101230.0,101220.0,1.549403]
[1736176342438,0.049404,101220.0,101210.0,0.05088908]
[1736176342634,0.410204,101220.0,101210.0,0.00148208]
[1736176342834,0.410204,101220.0,101210.0,0.05089108]
[1736176343948,0.410204,101220.0,101210.0,0.00148208]
[1736176344833,0.049415,101200.0,101180.0,1.549421]
[1736176345034,0.3608,101190.0,101180.0,1.549421]
[1736176346547,0.3608,101190.0,101180.0,1.557421]
[1736176347044,0.3608,101190.0,101180.0,1.80550326]
[1736176348132,0.410211,101210.0,101190.0,0.049419]
[1736176348339,0.3608,101210.0,101200.0,0.28849626]
[1736176348547,0.3608,101220.0,101210.0,0.049409]
[1736176348847,0.3608,101220.0,101210.0,1.549409]
[1736176349930,0.410204,101220.0,101210.0,1.549409]
[1736176350134,0.410204,101220.0,101210.0,0.049409]
[1736176350643,0.3608,101220.0,101210.0,0.051409]
[1736176350943,0.410204,101220.0,101210.0,0.051409]
[1736176351242,0.3608,101220.0,101210.0,0.051409]
[1736176351448,0.410202,101230.0,101220.0,0.049404]
[1736176351449,0.3608,101230.0,101220.0,0.049404]
[1736176352443,0.3608,101230.0,101220.0,1.549404]
[1736176353145,0.3608,101240.0,101220.0,1.78848626]
[1736176353338,0.3608,101240.0,101230.0,0.049399]
[1736176353539,0.410194,101240.0,101230.0,0.049399]
[1736176354642,0.3608,101240.0,101230.0,0.049399]
[1736176354836,0.410194,101240.0,101230.0,0.049399]
[1736176356544,0.3608,101240.0,101230.0,0.049399]
[1736176357339,0.3608,101240.0,101230.0,0.28848126]
[1736176357643,0.3608,101250.0,101240.0,0.049394]
[1736176358033,0.41019,101250.0,101240.0,0.049394]
[1736176358254,0.41019,101250.0,101240.0,1.549394]
[1736176358440,0.41019,101250.0,101240.0,0.049394]
[1736176358641,0.98937226,101250.0,101240.0,0.049394]
[1736176359043,0.75029,101250.0,101240.0,0.049394]
[1736176359744,0.75029,101250.0,101240.0,0.050394]
[1736176361042,0.90495793,101250.0,101240.0,0.050394]
[1736176362041,0.75029,101250.0,101240.0,0.050394]
[1736176362843,0.90495793,101250.0,101240.0,0.050394]
[1736176364054,0.75029,101250.0,101240.0,0.050394]
[1736176364560,0.7009,101250.0,101240.0,0.050394]
[1736176365350,0.75029,101250.0,101240.0,0.050394]
[1736176366452,0.90495793,101250.0,101240.0,0.050394]
[1736176366756,0.049394,101240.0,101230.0,0.049398]
[1736176366948,0.56486193,101240.0,101230.0,0.049398]
[1736176367451,0.049401,101230.0,101210.0,1.66955772]
[1736176367646,0.92567193,101220.0,101210.0,0.16955772]
[1736176367955,0.049409,101210.0,101200.0,0.2735149]
[1736176368146,0.3608,101210.0,101200.0,1.92818283]
[1736176368641,0.410209,101210.0,101200.0,1.7735149]
[1736176368840,0.410209,101210.0,101200.0,1.549414]
[1736176369450,0.410209,101210.0,101200.0,1.556414]
[1736176369663,0.410209,101210.0,101200.0,0.060414]
[1736176371153,0.56487693,101210.0,101200.0,0.011]
[1736176371756,0.410209,101210.0,101200.0,0.011]
[1736176372062,0.56487693,101210.0,101200.0,0.011]
[1736176372263,0.049419,101190.0,101180.0,1.5]
[1736176372449,0.97510993,101190.0,101170.0,0.27501139]
[1736176372650,0.410224,101180.0,101170.0,0.27501139]
[1736176372856,0.410224,101180.0,101170.0,1.55091049]
[1736176374054,0.410224,101180.0,101170.0,1.549428]
[1736176374451,0.410224,101180.0,101170.0,1.509]
[1736176374653,0.410224,101180.0,101170.0,1.558429]
[1736176374849,0.410224,101180.0,101170.0,1.509]
[1736176375053,0.410224,101180.0,101170.0,1.558429]
[1736176375550,0.411224,101180.0,101170.0,1.555429]
[1736176375757,0.56589193,101180.0,101170.0,1.506]
[1736176375962,0.56589193,101180.0,101170.0,0.009]
[1736176376163,0.56589193,101180.0,101140.0,0.05092492]
[1736176376164,0.049438,101150.0,101140.0,0.05092492]
[1736176376364,0.92570593,101150.0,101140.0,0.05092492]
[1736176376560,0.771038,101150.0,101140.0,0.05092492]
[1736176377356,0.7216,101150.0,101140.0,0.05092492]
[1736176377561,0.7216,101150.0,101140.0,0.049442]
[1736176377861,0.92570793,101150.0,101140.0,0.049443]
[1736176378063,0.049443,101140.0,101130.0,1.549446]
[1736176378271,0.56491093,101140.0,101130.0,1.549446]
[1736176378462,0.3608,101140.0,101130.0,1.549446]
[1736176379267,0.3608,101140.0,101130.0,1.56573459]
[1736176379466,0.57786496,101150.0,101140.0,0.050443]
[1736176379667,0.42319703,101150.0,101140.0,0.050443]
[1736176380169,0.3668,101150.0,101140.0,0.06673159]
[1736176380357,0.3668,101150.0,101140.0,0.07673159]
[1736176380557,0.57090593,101150.0,101140.0,0.07673159]
[1736176380764,0.416238,101150.0,101140.0,0.07673159]
[1736176381359,0.57090593,101150.0,101140.0,0.07673159]
[1736176381565,0.02243127,101140.0,101130.0,1.549445]
[1736176381762,0.5378992,101140.0,101130.0,1.5]
[1736176381968,0.049453,101120.0,101110.0,0.05094036]
[1736176382160,0.92572093,101120.0,101110.0,0.00148336]
[1736176382370,0.92572093,101120.0,101110.0,1.50148336]
[1736176382579,0.771053,101120.0,101110.0,1.55094136]
[1736176383460,0.02543127,101140.0,101110.0,1.55094136]
[1736176383461,0.3638,101140.0,101120.0,0.049453]
[1736176383669,0.36160001,101150.0,101140.0,0.049443]
[1736176383670,0.3608,101150.0,101140.0,0.049443]
[1736176383863,0.3608,101150.0,101140.0,0.20411093]
[1736176384061,0.3608,101150.0,101140.0,1.70411093]
[1736176384465,0.11756927,101160.0,101150.0,0.049438]
[1736176384761,0.11756927,101160.0,101150.0,0.20410593]
[1736176385577,0.47836927,101160.0,101150.0,0.20410593]
[1736176385773,0.11756927,101160.0,101150.0,0.56590593]
[1736176386075,0.11756927,101160.0,101150.0,0.89880593]
[1736176386271,0.36228337,101170.0,101160.0,0.049434]
[1736176386568,0.36228337,101170.0,101160.0,0.20410193]
[1736176386769,0.00148337,101170.0,101160.0,0.20410193]
[1736176386974,0.3608,101180.0,101170.0,0.049429]
[1736176387567,0.3608,101180.0,101170.0,1.549429]
[1736176387867,0.3608,101180.0,101170.0,0.049429]
[1736176388577,0.410224,101180.0,101170.0,0.049429]
[1736176388966,0.410224,101180.0,101170.0,0.050429]
[1736176390069,0.3658,101180.0,101170.0,0.050429]
[1736176391077,0.56989193,101180.0,101170.0,0.050429]
[1736176391576,0.04943,101170.0,101160.0,0.049432]
[1736176391776,0.049434,101160.0,101150.0,0.049437]
[1736176392077,0.410234,101160.0,101150.0,0.049437]
[1736176393063,0.410234,101160.0,101150.0,0.051437]
[1736176393675,0.56490193,101160.0,101150.0,0.002]
[1736176393973,0.410234,101160.0,101150.0,0.002]
[1736176394277,0.410234,101160.0,101150.0,0.051438]
[1736176394578,0.412234,101160.0,101150.0,0.049438]
[1736176395574,0.56690193,101160.0,101150.0,0.049438]
[1736176395784,0.412234,101160.0,101150.0,0.049438]
[1736176396180,0.56690193,101160.0,101150.0,0.049438]
[1736176396478,0.3628,101160.0,101150.0,0.049438]
[1736176396674,0.412234,101160.0,101150.0,0.049438]
[1736176397884,0.412234,101160.0,101150.0,1.549438]
[1736176398684,0.412234,101160.0,101150.0,0.049438]
[1736176399181,0.412234,101160.0,101140.0,1.71291397]
[1736176399376,0.3608,101150.0,101140.0,1.71291397]
[1736176400473,0.412234,101160.0,101140.0,1.71291397]
[1736176400674,0.3628,101160.0,101150.0,0.20410593]
[1736176401475,0.049438,101150.0,101140.0,1.56024604]
[1736176401676,0.049438,101150.0,101140.0,1.50348292]
[1736176401677,0.410238,101150.0,101140.0,1.50348292]
[1736176401878,0.410238,101150.0,101140.0,0.00348292]
[1736176402078,0.410238,101150.0,101140.0,0.00148292]
[1736176402676,0.410238,101150.0,101140.0,0.05092592]
[1736176402881,0.050438,101150.0,101140.0,0.20559385]
[1736176403081,0.001,101150.0,101140.0,0.20659385]
[1736176403980,0.3618,101150.0,101140.0,0.20659385]
[1736176404675,0.3608,101150.0,101140.0,0.20859385]
[1736176404881,0.52780427,101160.0,101150.0,0.049438]
[1736176405078,0.52780427,101160.0,101150.0,0.20410593]
[1736176405472,0.52780427,101160.0,101150.0,1.549438]
[1736176406280,0.52780427,101160.0,101140.0,0.05192492]
[1736176406487,0.411236,101160.0,101140.0,0.20659285]
[1736176406781,0.001,101160.0,101150.0,0.20410593]
[1736176407375,0.3618,101160.0,101150.0,0.20410593]
[1736176407680,0.001,101160.0,101150.0,0.20410593]
[1736176408178,0.47836927,101170.0,101160.0,0.049434]
[1736176408981,0.52779827,101170.0,101160.0,0.049434]
[1736176409279,0.52979827,101170.0,101160.0,0.049434]
[1736176409479,0.412229,101170.0,101160.0,0.049434]
[1736176409784,0.3678,101170.0,101160.0,0.049434]
[1736176409983,0.417229,101170.0,101160.0,0.049434]
[1736176410187,0.049434,101160.0,101150.0,0.049437]
[1736176410483,0.3608,101160.0,101150.0,0.20410493]
[1736176410986,0.410234,101160.0,101150.0,0.049437]
[1736176411690,0.411234,101160.0,101150.0,0.049437]
[1736176412075,0.3618,101160.0,101150.0,0.20410493]
[1736176412281,0.411234,101160.0,101150.0,0.049437]
[1736176412786,0.049438,101150.0,101140.0,0.05092392]
[1736176412981,0.410238,101150.0,101140.0,0.05092392]
[1736176413283,0.410238,101150.0,101140.0,1.55092392]
[1736176413481,0.3608,101150.0,101140.0,1.55092392]
[1736176413688,0.3608,101150.0,101140.0,1.70559185]
[1736176413988,0.52880327,101160.0,101150.0,0.049438]
[1736176414292,0.52880327,101160.0,101150.0,0.20410593]
[1736176414293,0.11856927,101160.0,101150.0,0.20410593]
[1736176414874,0.11756927,101160.0,101150.0,0.56490593]
[1736176415277,0.16699827,101170.0,101160.0,0.049434]
[1736176415474,0.52779827,101170.0,101160.0,0.049434]
[1736176415888,0.52779827,101170.0,101160.0,1.549434]
[1736176416983,0.52779827,101170.0,101160.0,0.049434]
[1736176417178,0.049434,101160.0,101150.0,0.003]
[1736176417390,0.410234,101160.0,101150.0,0.003]
[1736176417591,0.410234,101160.0,101150.0,0.001]
[1736176417777,0.51546793,101160.0,101140.0,1.5]
[1736176417982,0.049443,101140.0,101130.0,0.2751566]
[1736176418180,0.410243,101140.0,101130.0,0.2751566]
[1736176418385,0.3608,101140.0,101130.0,1.92982453]
[1736176418583,0.410238,101150.0,101140.0,0.049443]
[1736176418782,0.771038,101150.0,101140.0,0.049443]
[1736176418983,0.771038,101150.0,101140.0,0.050443]
[1736176419183,0.771038,101150.0,101140.0,0.001]
[1736176419587,0.91799959,101150.0,101140.0,0.001]
[1736176419786,0.91799959,101150.0,101140.0,0.050443]
[1736176420687,0.91799959,101150.0,101140.0,0.049443]
[1736176420888,0.91899959,101150.0,101140.0,0.058443]
[1736176421787,0.91899959,101150.0,101140.0,0.21311093]
[1736176422189,0.14796159,101150.0,101140.0,1.71311093]
[1736176423588,0.001,101150.0,101140.0,1.71311093]
[1736176423786,0.26535737,101160.0,101150.0,0.049438]
[1736176423986,0.26535737,101160.0,101150.0,0.54640593]
[1736176424187,0.26535737,101160.0,101150.0,0.90720593]
[1736176424387,0.17635391,101170.0,101160.0,0.049434]
[1736176424682,0.20574623,101180.0,101170.0,0.049429]
[1736176424885,0.59593854,101190.0,101170.0,0.049429]
[1736176424886,0.3608,101190.0,101180.0,0.049424]
[1736176425080,0.3608,101190.0,101180.0,0.54249193]
[1736176425289,0.80168477,101200.0,101190.0,0.049419]
[1736176425488,0.80168477,101200.0,101190.0,0.20408693]
[1736176425896,0.80168477,101200.0,101190.0,0.049419]
[1736176426090,0.85109877,101200.0,101190.0,0.049419]
[1736176426696,0.3608,101200.0,101190.0,0.049419]
[1736176426891,0.3608,101200.0,101190.0,0.20408693]
[1736176427786,0.3658,101200.0,101190.0,0.20408693]
[1736176428388,0.3678,101200.0,101190.0,0.20408693]
[1736176428583,0.007,101200.0,101190.0,0.56488693]
[1736176428900,0.0629,101210.0,101200.0,0.049414]
[1736176429094,0.3608,101230.0,101220.0,0.049404]
[1736176429395,0.41791548,101240.0,101230.0,0.049399]
[1736176429396,0.57258341,101240.0,101230.0,0.049399]
[1736176429698,0.36852048,101240.0,101230.0,0.049399]
[1736176429991,0.36852048,101240.0,101230.0,0.20406693]
[1736176430297,0.00772048,101240.0,101230.0,0.20406693]
[1736176430495,0.36228218,101260.0,101250.0,0.04939]
[1736176430689,0.36228218,101260.0,101250.0,0.20405793]
[1736176430886,0.36228218,101260.0,101250.0,0.04939]
[1736176431090,0.92713511,101260.0,101250.0,0.04939]
[1736176431297,0.77246718,101260.0,101250.0,0.04939]
[1736176431696,0.77746718,101260.0,101250.0,0.04939]
[1736176431898,0.93996553,101260.0,101250.0,0.04939]
[1736176432090,0.94696553,101260.0,101250.0,0.05039]
[1736176432486,0.94696553,101260.0,101250.0,0.001]
[1736176432691,0.7922976,101260.0,101250.0,0.05039]
[1736176432900,0.3821126,101260.0,101250.0,0.05039]
[1736176433104,0.012,101260.0,101250.0,0.56585793]
[1736176433306,0.012,101260.0,101250.0,0.87755793]
[1736176433492,0.012,101260.0,101250.0,0.51675793]
[1736176433797,0.012,101260.0,101250.0,0.87755793]
[1736176433991,0.012,101260.0,101250.0,0.51675793]
[1736176434501,0.009,101260.0,101250.0,0.51675793]
[1736176434898,0.007,101260.0,101250.0,0.51575793]
[1736176436095,0.007,101260.0,101250.0,0.87655793]
[1736176436700,0.00794034,101270.0,101260.0,0.049385]
[1736176436906,0.36228157,101290.0,101280.0,0.049375]
[1736176437105,0.5663195,101290.0,101280.0,0.049375]
[1736176437411,0.5169495,101290.0,101280.0,0.049375]
[1736176437705,0.5169495,101290.0,101280.0,1.549375]
[1736176438109,0.5169495,101290.0,101280.0,1.550375]
[1736176438110,0.5229495,101290.0,101280.0,1.550375]
[1736176438407,0.36828157,101290.0,101280.0,0.050375]
[1736176438595,0.5229495,101290.0,101280.0,0.050375]
[1736176438899,0.36828157,101290.0,101280.0,1.550375]
[1736176439092,0.00748157,101290.0,101280.0,1.550375]
[1736176439296,0.36828157,101290.0,101280.0,1.550375]
[1736176439502,0.00748157,101290.0,101280.0,1.550375]
[1736176439896,0.37616189,101290.0,101280.0,1.550375]
[1736176440097,0.36828157,101290.0,101280.0,1.550375]
[1736176440699,0.36828157,101290.0,101280.0,2.06584293]
[1736176440700,0.00948157,101290.0,101280.0,2.06584293]
[1736176440904,0.00948157,101290.0,101280.0,2.39044293]
[1736176441301,0.008,101290.0,101280.0,2.39044293]
[1736176441504,0.897232,101330.0,101300.0,0.049365]
[1736176441806,0.897232,101330.0,101320.0,0.049355]
[1736176441807,1.05189993,101330.0,101320.0,0.049355]
[1736176442006,1.41269993,101330.0,101320.0,0.049355]
[1736176442206,1.258032,101330.0,101320.0,0.049355]
[1736176442602,0.049361,101310.0,101280.0,2.39044193]
[1736176442802,0.3608,101290.0,101280.0,0.374975]
[1736176443003,0.3608,101290.0,101280.0,0.52964293]
[1736176443211,0.3608,101290.0,101280.0,0.20504293]
[1736176443908,0.41017,101290.0,101280.0,0.049375]
[1736176444104,0.41017,101290.0,101280.0,0.20404293]
[1736176444512,0.41017,101290.0,101280.0,0.049375]
[1736176444918,0.049375,101280.0,101270.0,0.05086023]
[1736176445210,0.410175,101280.0,101270.0,0.05086023]
[1736176445399,0.410175,101280.0,101270.0,1.55086023]
[1736176446503,0.410173,101290.0,101280.0,0.049375]
[1736176447403,0.049375,101280.0,101270.0,1.55285923]
[1736176447601,0.410175,101280.0,101270.0,1.55285923]
[1736176447804,0.410175,101280.0,101270.0,1.71152716]
[1736176448011,0.410175,101280.0,101270.0,1.55686123]
[1736176448208,0.410175,101280.0,101270.0,1.55486123]
[1736176448512,0.410175,101280.0,101270.0,1.70552916]
[1736176448906,0.3608,101280.0,101270.0,1.70552916]
[1736176449298,0.00777317,101290.0,101280.0,0.049375]
[1736176449615,0.410168,101300.0,101290.0,0.049368]
[1736176449804,0.770968,101300.0,101290.0,0.049368]
[1736176450114,0.770968,101300.0,101290.0,0.20403593]
[1736176450412,0.770968,101300.0,101290.0,1.549368]
[1736176450904,0.770968,101300.0,101290.0,0.049368]
[1736176451298,0.770968,101300.0,101290.0,0.20403593]
[1736176451502,0.770968,101300.0,101290.0,0.049368]
[1736176452217,0.771968,101300.0,101290.0,1.549368]
[1736176452513,0.771968,101300.0,101290.0,0.049368]
[1736176453205,0.771968,101300.0,101290.0,0.15236075]
[1736176453612,0.771968,101300.0,101290.0,0.049368]
[1736176453913,0.87496075,101300.0,101290.0,0.049368]
[1736176455112,0.87496075,101300.0,101280.0,1.5]
[1736176455299,0.049372,101290.0,101280.0,0.049373]
[1736176455507,0.51416075,101300.0,101290.0,0.04937]
[1736176455508,0.411167,101300.0,101290.0,0.04937]
[1736176455707,0.51415975,101300.0,101290.0,1.54937]
[1736176456407,0.411167,101300.0,101290.0,1.54937]
[1736176456711,0.51415975,101300.0,101290.0,1.54937]
[1736176457504,0.51415975,101300.0,101290.0,1.5]
[1736176457900,0.51315975,101300.0,101290.0,1.5]
[1736176458107,0.82575975,101300.0,101290.0,1.5]
[1736176458301,0.411167,101300.0,101290.0,1.54937]
[1736176458509,0.51415975,101300.0,101290.0,1.54937]
[1736176458702,0.51415975,101300.0,101290.0,1.5]
[1736176459114,0.411167,101300.0,101290.0,1.54937]
[1736176459614,0.49867051,101300.0,101290.0,1.54937]
[1736176460315,0.49866851,101300.0,101290.0,1.65236275]
[1736176460510,0.49866851,101300.0,101290.0,1.54937]
[1736176460715,0.411165,101300.0,101290.0,0.04937]
[1736176461019,0.411165,101300.0,101290.0,0.15236275]
[1736176461208,0.411165,101300.0,101290.0,1.54937]
[1736176461406,0.51315775,101300.0,101290.0,1.54937]
[1736176461807,0.51315775,101300.0,101280.0,0.48426775]
[1736176461808,0.04937,101290.0,101280.0,0.48426775]
[1736176462012,0.41017,101290.0,101280.0,0.48426775]
[1736176462515,0.3608,101300.0,101280.0,0.48426775]
[1736176462516,0.3608,101300.0,101290.0,0.04937]
[1736176462714,0.3608,101300.0,101290.0,0.15236275]
[1736176463342,0.44930351,101300.0,101290.0,0.15236275]
[1736176463511,0.44930351,101300.0,101290.0,0.04937]
[1736176463711,0.44930351,101300.0,101290.0,0.15236275]
[1736176463920,0.49866851,101300.0,101290.0,0.04937]
[1736176464215,0.08750351,101300.0,101290.0,0.15236275]
[1736176465225,0.44830351,101300.0,101290.0,0.15236275]
[1736176466019,0.3608,101300.0,101290.0,0.15236275]
[1736176467120,0.410165,101300.0,101290.0,0.15236275]
[1736176467321,0.410165,101300.0,101290.0,0.15436275]
[1736176467619,0.49766851,101300.0,101290.0,0.15436275]
[1736176467824,0.60066126,101300.0,101290.0,0.05137]
[1736176468011,1.08742126,101300.0,101290.0,0.006]
[1736176468326,1.39362126,101300.0,101290.0,0.006]
[1736176468714,1.39362126,101300.0,101270.0,0.13197505]
[1736176468715,0.049375,101280.0,101270.0,0.13197505]
[1736176468918,0.04938,101270.0,101250.0,0.22613491]
[1736176469220,1.36073775,101260.0,101250.0,0.14673301]
[1736176470015,0.3608,101260.0,101250.0,0.29911576]
[1736176470218,0.3608,101260.0,101250.0,0.62541576]
[1736176470520,0.46603478,101290.0,101270.0,0.049378]
[1736176470724,0.42130379,101290.0,101280.0,0.049375]
[1736176471127,0.42130379,101290.0,101280.0,1.549375]
[1736176471613,0.57581215,101290.0,101280.0,1.549375]
[1736176471819,0.57581215,101290.0,101280.0,0.049375]
[1736176472024,0.57981215,101290.0,101280.0,0.049375]
[1736176472214,0.42530379,101290.0,101280.0,0.049375]
[1736176472412,0.00548203,101290.0,101280.0,1.549375]
[1736176472618,0.15155469,101290.0,101280.0,2.39688336]
[1736176472814,0.15155469,101290.0,101280.0,2.70778336]
[1736176473123,0.15155469,101290.0,101280.0,2.553275]
[1736176473618,0.006,101290.0,101280.0,2.553275]
[1736176473828,0.006,101290.0,101280.0,2.70778336]
[1736176474427,0.002,101290.0,101280.0,2.70778336]
[1736176474617,0.08854595,101300.0,101280.0,2.70778336]
[1736176474811,0.08854595,101300.0,101290.0,0.20387836]
[1736176475017,0.14755469,101310.0,101290.0,0.56467836]
[1736176475219,0.14755469,101310.0,101300.0,0.56467336]
[1736176475417,0.2854335,101340.0,101330.0,0.049351]
[1736176475619,0.2854335,101340.0,101330.0,0.410151]
[1736176475821,0.2360875,101340.0,101330.0,0.410151]
[1736176476023,0.2360875,101340.0,101330.0,1.870151]
[1736176476717,0.05923985,101350.0,101330.0,1.919498]
[1736176476913,0.15450836,101340.0,101330.0,0.410147]
[1736176477116,0.049351,101330.0,101320.0,0.410154]
[1736176479032,0.049351,101330.0,101320.0,0.411154]
[1736176479329,0.56465936,101330.0,101320.0,0.001]
[1736176479519,0.049351,101330.0,101320.0,0.001]
[1736176479714,0.052351,101330.0,101320.0,0.001]
[1736176480120,0.06217589,101330.0,101320.0,0.001]
[1736176480429,0.57748425,101330.0,101320.0,0.001]
[1736176480620,0.049365,101300.0,101280.0,0.3608]
[1736176480925,0.20387636,101300.0,101280.0,0.410174]
[1736176481114,0.049368,101300.0,101280.0,0.3608]
[1736176481315,0.049368,101300.0,101290.0,0.41017]
[1736176481521,0.049362,101310.0,101290.0,0.56467836]
[1736176481727,0.049362,101310.0,101300.0,0.410165]
[1736176482126,0.20386536,101320.0,101300.0,0.410165]
[1736176482427,0.20386836,101310.0,101300.0,1.870165]
[1736176482623,0.20386836,101310.0,101300.0,1.46]
[1736176482820,0.20386836,101310.0,101290.0,0.414168]
[1736176483218,0.15450836,101300.0,101290.0,1.874168]
[1736176483419,0.15450836,101300.0,101290.0,1.8248]
[1736176483420,0.20387336,101300.0,101290.0,1.8248]
[1736176483624,0.20387336,101300.0,101290.0,0.3648]
[1736176483820,0.56467336,101300.0,101290.0,0.004]
[1736176484127,1.05139336,101300.0,101290.0,0.004]
[1736176484332,0.049375,101280.0,101270.0,2.1421]
[1736176484528,0.04938,101270.0,101260.0,0.410183]
[1736176485030,0.04938,101270.0,101260.0,1.870183]
[1736176485420,0.84087936,101290.0,101270.0,0.049376]
[1736176485421,0.04937,101290.0,101270.0,0.049376]
[1736176485623,1.05139336,101300.0,101270.0,0.410176]
[1736176485921,0.11787313,101280.0,101270.0,0.410176]
[1736176486316,0.16724813,101280.0,101270.0,0.410176]
[1736176486625,0.04938,101270.0,101260.0,0.00052]
[1736176486822,0.04938,101270.0,101250.0,0.70808129]
[1736176486823,0.56468836,101270.0,101240.0,0.410192]
[1736176487034,0.04939,101250.0,101240.0,0.56470036]
[1736176487224,0.51530836,101270.0,101240.0,0.410192]
[1736176487531,1.0348588,101280.0,101250.0,0.410187]
[1736176487532,0.049387,101260.0,101250.0,0.410187]
[1736176487734,0.049387,101260.0,101250.0,0.742787]
[1736176488121,0.002,101270.0,101250.0,0.6934]
[1736176488328,0.052383,101270.0,101260.0,0.049385]
[1736176488526,0.17025613,101270.0,101260.0,0.049385]
[1736176488724,0.17025613,101270.0,101260.0,0.410185]
[1736176488924,0.16925613,101270.0,101260.0,0.410185]
[1736176489431,0.16725613,101270.0,101260.0,0.410185]
[1736176489729,0.049383,101270.0,101260.0,0.410185]
[1736176489938,0.16873092,101280.0,101270.0,0.04938]
[1736176490833,0.16724913,101280.0,101270.0,0.04938]
[1736176491036,0.049376,101280.0,101270.0,0.41018]
[1736176491236,0.050376,101280.0,101270.0,0.41018]
[1736176491728,0.049376,101280.0,101270.0,0.41018]
[1736176492227,0.20388436,101280.0,101270.0,1.87018]
[1736176492429,0.051376,101280.0,101270.0,1.87018]
[1736176492828,0.002,101280.0,101270.0,1.87018]
[1736176493133,0.17952792,101300.0,101270.0,2.02468836]
[1736176493433,0.17952792,101300.0,101290.0,0.41017]
[1736176493930,0.16724013,101300.0,101290.0,0.41017]
[1736176494237,0.049367,101300.0,101290.0,0.41017]
[1736176494628,0.050367,101300.0,101290.0,0.56467836]
[1736176494938,0.001,101300.0,101290.0,0.56467836]
[1736176495631,0.004,101300.0,101290.0,0.56467836]
[1736176495831,0.003,101300.0,101290.0,0.56467836]
[1736176496134,0.003,101300.0,101290.0,0.56867836]
[1736176496324,0.00012845,101310.0,101300.0,0.049365]
[1736176496529,0.00012845,101310.0,101300.0,0.410165]
[1736176496730,0.04948845,101310.0,101300.0,0.56467336]
[1736176497033,0.00012845,101310.0,101300.0,2.02467336]
[1736176497332,0.00012845,101310.0,101300.0,2.02667336]
[1736176498830,0.04948845,101310.0,101300.0,1.876165]
[1736176499138,0.04948845,101310.0,101300.0,0.416165]
[1736176499326,0.00012845,101310.0,101300.0,0.57067336]
[1736176500232,0.00012845,101310.0,101300.0,0.56867336]